fUST/lending_fUST_20250114
["ID","MTS","AMOUNT","RATE_DAILY","PERIOD"]
[348902536,1736868633547,-500.0,0.00021917,3]
[348902537,1736868633556,-200.0,0.00021917,3]
[348902538,1736868633565,-590.28674031,0.00021917,3]
[348902539,1736868633575,-500.0,0.00021917,3]
[348902540,1736868633586,-500.0,0.00021917,3]
[348902541,1736868633595,-500.0,0.00021917,3]
[348902542,1736868633608,-389.37075348,0.00021917,3]
[348902543,1736868633618,-500.0,0.00021917,3]
[348902544,1736868633627,-500.0,0.00021917,3]
[348902545,1736868633637,-500.0,0.00021917,3]
[348902546,1736868633648,-500.0,0.00021917,3]
[348902547,1736868633657,-502.02167406,0.00021917,3]
[348902548,1736868633667,-500.0,0.00021917,3]
[348902549,1736868633676,-500.0,0.00021917,3]
[348902550,1736868633686,-273.28427833,0.00021917,3]
[348902551,1736868633696,-500.0,0.00021917,3]
[348902552,1736868633706,-500.0,0.00021917,3]
[348902553,1736868633716,-500.0,0.00021917,3]
[348902554,1736868633726,-500.0,0.00021917,3]
[348902555,1736868633736,-500.0,0.00021917,3]
[348902556,1736868633746,-500.0,0.00021917,3]
[348902557,1736868633756,-500.0,0.00021917,3]
[348902558,1736868633766,-500.0,0.00021917,3]
[348902559,1736868633776,-500.0,0.00021917,3]
[348902560,1736868633787,-602.41196835,0.00021917,3]
[348902561,1736868633796,-500.0,0.00021917,3]
[348902562,1736868633806,-500.0,0.00021917,3]
[348902563,1736868633816,-500.0,0.00021917,3]
[348902564,1736868633826,-500.0,0.00021917,3]
[348902565,1736868633836,-500.0,0.00021917,3]
[348902566,1736868633846,-500.0,0.00021917,3]
[348902567,1736868633859,-500.0,0.00021917,3]
[348902568,1736868633870,-500.0,0.00021917,3]
[348902569,1736868633881,-500.0,0.00021917,3]
[348902570,1736868633891,-496.27072835,0.00021917,3]
[348902571,1736868633900,-449.61573678,0.00021917,3]
[348902572,1736868633910,-500.0,0.00021917,3]
[348902573,1736868633920,-500.0,0.00021917,3]
[348902574,1736868633930,-500.0,0.00021917,3]
[348902575,1736868633940,-500.0,0.00021917,3]
[348902576,1736868633950,-512.78567916,0.00021917,3]
[348902577,1736868633961,-500.0,0.00021917,3]
[348902578,1736868633970,-500.0,0.00021917,3]
[348902579,1736868633981,-500.0,0.00021917,3]
[348902580,1736868633991,-500.0,0.00021917,3]
[348902581,1736868634000,-500.94719348,0.00021917,3]
[348902582,1736868634010,-500.0,0.00021917,3]
[348902583,1736868634020,-500.0,0.00021917,3]
[348902584,1736868634029,-500.0,0.00021917,3]
[348902585,1736868634039,-500.0,0.00021917,3]
[348902586,1736868634048,-500.0,0.00021917,3]
[348902587,1736868634058,-500.87068531,0.00021917,3]
[348902588,1736868634068,-500.0,0.00021917,3]
[348902589,1736868634078,-500.0,0.00021917,3]
[348902590,1736868634087,-500.0,0.00021917,3]
[348902591,1736868634096,-302.05843862,0.00021917,3]
[348902592,1736868634108,-500.0,0.00021917,3]
[348902593,1736868634122,-500.0,0.00021917,3]
[348902594,1736868634132,-500.0,0.00021917,3]
[348902595,1736868634142,-500.0,0.00021917,3]
[348902596,1736868634151,-500.52315074,0.00021917,3]
[348902597,1736868634162,-500.0,0.00021917,3]
[348902598,1736868634172,-500.0,0.00021917,3]
[348902599,1736868634182,-500.0,0.00021917,3]
[348902600,1736868634192,-500.0,0.00021917,3]
[348902601,1736868634203,-500.0,0.00021917,3]
[348902602,1736868634212,-500.0,0.00021917,3]
[348902603,1736868634222,-500.0,0.00021917,3]
[348902604,1736868634232,-500.0,0.00021917,3]
[348902605,1736868634242,-501.42570542,0.00021917,3]
[348902606,1736868634251,-500.0,0.00021917,3]
[348902607,1736868634261,-582.05793864,0.00021917,3]
[348902608,1736868634271,-500.0,0.00021917,3]
[348902609,1736868634280,-500.0,0.00021917,3]
[348902610,1736868634290,-500.0,0.00021917,3]
[348902611,1736868634299,-500.0,0.00021917,3]
[348902612,1736868634308,-500.0,0.00021917,3]
[348902613,1736868634318,-500.0,0.00021917,3]
[348902614,1736868634327,-500.0,0.00021917,3]
[348902615,1736868634337,-500.0,0.00021917,3]
[348902616,1736868634346,-500.0,0.00021917,3]
[348902617,1736868634359,-500.0,0.00021917,3]
[348902618,1736868634369,-500.0,0.00021917,3]
[348902619,1736868634380,-500.87094482,0.00021917,3]
[348902620,1736868634391,-554.6,0.00021917,3]
[348902621,1736868634401,-500.0,0.00021917,3]
[348902622,1736868634411,-3768.28,0.00021917,3]
[348902623,1736868634420,-645.48,0.00021917,3]
[348902624,1736868634431,-1202.4,0.00021917,3]
[348902625,1736868634440,-500.0,0.00021917,3]
[348902626,1736868634449,-500.0,0.00021917,3]
[348902627,1736868634459,-779.88,0.00021917,3]
[348902628,1736868634468,-500.0,0.00021917,3]
[348902629,1736868634478,-500.0,0.00021917,3]
[348902630,1736868634488,-612.07,0.00021917,3]
[348902631,1736868634497,-545.9448416,0.00021917,3]
[348902632,1736868634506,-500.0,0.00021917,3]
[348902633,1736868634516,-500.0,0.00021917,3]
[348902634,1736868634526,-500.0,0.00021917,3]
[348902635,1736868634535,-500.96620685,0.00021917,3]
[348902636,1736868634544,-793.51,0.00021917,3]
[348902637,1736868634554,-500.0,0.00021917,3]
[348902638,1736868634563,-546.51,0.00021917,3]
[348902639,1736868634572,-571.65,0.00021917,3]
[348902640,1736868634582,-534.63,0.00021917,3]
[348902641,1736868634591,-500.0,0.00021917,3]
[348902642,1736868634604,-500.0,0.00021917,3]
[348902643,1736868634613,-615.92,0.00021917,3]
[348902644,1736868634622,-500.0,0.00021917,3]
[348902645,1736868634631,-500.0,0.00021917,3]
[348902646,1736868634641,-500.0,0.00021917,3]
[348902647,1736868634650,-500.0,0.00021917,3]
[348902648,1736868634659,-500.0,0.00021917,3]
[348902649,1736868634669,-500.0,0.00021917,3]
[348902650,1736868634679,-213.18689949,0.00021917,3]
[348902651,1736868634688,-505.86757736,0.00021917,3]
[348902652,1736868634698,-500.0,0.00021917,3]
[348902653,1736868634709,-500.0,0.00021917,3]
[348902654,1736868634718,-500.0,0.00021917,3]
[348902655,1736868634727,-572.53,0.00021917,3]
[348902656,1736868634737,-500.0,0.00021917,3]
[348902657,1736868634746,-500.0,0.00021917,3]
[348902658,1736868634756,-1372.86,0.00021917,3]
[348902659,1736868634765,-500.0,0.00021917,3]
[348902660,1736868634774,-500.0,0.00021917,3]
[348902661,1736868634784,-500.0,0.00021917,3]
[348902662,1736868634794,-500.0,0.00021917,3]
[348902663,1736868634803,-500.0,0.00021917,3]
[348902664,1736868634814,-500.0,0.00021917,3]
[348902665,1736868634823,-500.0,0.00021917,3]
[348902666,1736868634833,-500.0,0.00021917,3]
[348902667,1736868634844,-850.61,0.00021917,3]
[348902668,1736868634856,-552.33,0.00021917,3]
[348902669,1736868634865,-500.0,0.00021917,3]
[348902670,1736868634874,-500.0,0.00021917,3]
[348902671,1736868634883,-500.0,0.00021917,3]
[348902672,1736868634894,-6280.18,0.00021917,3]
[348902673,1736868634905,-500.0,0.00021917,3]
[348902674,1736868634914,-500.0,0.00021917,3]
[348902675,1736868634924,-500.0,0.00021917,3]
[348902676,1736868634934,-503.38657237,0.00021917,3]
[348902677,1736868634944,-513.5,0.00021917,3]
[348902678,1736868634953,-500.0,0.00021917,3]
[348902679,1736868634962,-100056.4,0.00021917,3]
[348902680,1736868634972,-733.01,0.00021917,3]
[348902681,1736868634982,-500.0,0.00021917,3]
[348902682,1736868634991,-500.0,0.00021917,3]
[348902683,1736868635001,-500.38077139,0.00021917,3]
[348902684,1736868635010,-500.0,0.00021917,3]
[348902685,1736868635020,-500.0,0.00021917,3]
[348902686,1736868635029,-1030.31,0.00021917,3]
[348902687,1736868635039,-501.17030177,0.00021917,3]
[348902688,1736868635049,-500.0,0.00021917,3]
[348902689,1736868635060,-500.0,0.00021917,3]
[348902690,1736868635070,-500.0,0.00021917,3]
[348902691,1736868635079,-500.0,0.00021917,3]
[348902692,1736868635088,-500.0,0.00021917,3]
[348902693,1736868635098,-500.0,0.00021917,3]
[348902694,1736868635109,-500.0,0.00021917,3]
[348902695,1736868635122,-795.65,0.00021917,3]
[348902696,1736868635131,-500.0,0.00021917,3]
[348902697,1736868635140,-807.22,0.00021917,3]
[348902698,1736868635149,-511.75,0.00021917,3]
[348902699,1736868635159,-500.0,0.00021917,3]
[348902700,1736868635169,-958.11,0.00021917,3]
[348902701,1736868635178,-500.0,0.00021917,3]
[348902702,1736868635188,-500.0,0.00021917,3]
[348902703,1736868635198,-284.70825253,0.00021917,3]
[348902704,1736868635208,-624.77,0.00021917,3]
[348902705,1736868635217,-594.49,0.00021917,3]
[348902706,1736868635226,-500.0,0.00021917,3]
[348902707,1736868635236,-723.78,0.00021917,3]
[348902708,1736868635245,-500.0,0.00021917,3]
[348902709,1736868635255,-500.0,0.00021917,3]
[348902710,1736868635265,-378.27881629,0.00021917,3]
[348902711,1736868635274,-1126.39,0.00021917,3]
[348902712,1736868635283,-500.0,0.00021917,3]
[348902713,1736868635296,-500.0,0.00021917,3]
[348902714,1736868635306,-500.0,0.00021917,3]
[348902715,1736868635315,-500.0,0.00021917,3]
[348902716,1736868635324,-500.0,0.00021917,3]
[348902717,1736868635333,-500.0,0.00021917,3]
[348902718,1736868635343,-500.0,0.00021917,3]
[348902719,1736868635354,-1354.68,0.00021917,3]
[348902720,1736868635363,-500.0,0.00021917,3]
[348902721,1736868635374,-518.51388234,0.00021917,3]
[348902722,1736868635383,-670.2,0.00021917,3]
[348902723,1736868635393,-5829.81,0.00021917,3]
[348902724,1736868635403,-500.0,0.00021917,3]
[348902725,1736868635412,-500.0,0.00021917,3]
[348902726,1736868635422,-500.0,0.00021917,3]
[348902727,1736868635432,-500.0,0.00021917,3]
[348902728,1736868635442,-500.0,0.00021917,3]
[348902729,1736868635452,-861.16,0.00021917,3]
[348902730,1736868635462,-500.0,0.00021917,3]
[348902731,1736868635471,-500.0,0.00021917,3]
[348902732,1736868635481,-500.0,0.00021917,3]
[348902733,1736868635491,-500.0,0.00021917,3]
[348902734,1736868635500,-500.0,0.00021917,3]
[348902735,1736868635510,-500.0,0.00021917,3]
[348902736,1736868635519,-500.0,0.00021917,3]
[348902737,1736868635529,-500.0,0.00021917,3]
[348902738,1736868635538,-500.0,0.00021917,3]
[348902739,1736868635547,-500.0,0.00021917,3]
[348902740,1736868635557,-500.0,0.00021917,3]
[348902741,1736868635567,-500.0,0.00021917,3]
[348902742,1736868635577,-500.0,0.00021917,3]
[348902743,1736868635587,-500.0,0.00021917,3]
[348902744,1736868635598,-418.52,0.00021917,3]
[348902745,1736868635610,-500.0,0.00021917,3]
[348902746,1736868635619,-199.23849831,0.00021917,3]
[348902747,1736868635629,-500.0,0.00021917,3]
[348902748,1736868635639,-809.13,0.00021917,3]
[348902749,1736868635648,-15446.98,0.00021917,2]
[348902750,1736868635658,-165.98073129,0.00021917,3]
[348902751,1736868635667,-500.0,0.00021917,3]
[348902752,1736868635677,-500.0,0.00021917,3]
[348902753,1736868635687,-500.0,0.00021917,3]
[348902754,1736868635697,-500.0,0.00021917,3]
[348902755,1736868635706,-500.51467281,0.00021917,3]
[348902756,1736868635716,-500.0,0.00021917,3]
[348902757,1736868635725,-500.71929054,0.00021917,3]
[348902758,1736868635736,-819.78,0.00021917,3]
[348902759,1736868635746,-500.0,0.00021917,3]
[348902760,1736868635756,-2258.25,0.00021917,3]
[348902761,1736868635766,-500.0,0.00021917,3]
[348902762,1736868635775,-500.0,0.00021917,3]
[348902763,1736868635785,-501.0356338,0.00021917,3]
[348902764,1736868635795,-2645.94,0.00021917,2]
[348902765,1736868635805,-500.0,0.00021917,3]
[348902766,1736868635814,-500.0,0.00021917,3]
[348902767,1736868635824,-500.0,0.00021917,3]
[348902768,1736868635833,-500.0,0.00021917,3]
[348902769,1736868635845,-500.0,0.00021917,3]
[348902770,1736868635866,-500.0,0.00021917,3]
[348902771,1736868635878,-500.0,0.00021917,3]
[348902772,1736868635889,-3943.85,0.00021917,3]
[348902773,1736868635899,-679.18,0.00021917,3]
[348902774,1736868635909,-500.0,0.00021917,3]
[348902775,1736868635919,-500.0,0.00021917,3]
[348902776,1736868635930,-500.0,0.00021917,3]
[348902777,1736868635940,-28763.14,0.00021917,3]
[348902778,1736868635949,-500.0,0.00021917,3]
[348902779,1736868635959,-500.0,0.00021917,3]
[348902780,1736868635970,-564.20834067,0.00021917,3]
[348902781,1736868635979,-500.0,0.00021917,3]
[348902782,1736868635988,-500.78567531,0.00021917,3]
[348902783,1736868635997,-500.0,0.00021917,3]
[348902784,1736868636007,-500.0,0.00021917,3]
[348902785,1736868636019,-500.0,0.00021917,3]
[348902786,1736868636029,-500.0,0.00021917,3]
[348902787,1736868636038,-500.0,0.00021917,3]
[348902788,1736868636049,-500.0,0.00021917,3]
[348902789,1736868636059,-500.0,0.00021917,3]
[348902790,1736868636069,-1183.34,0.00021917,3]
[348902791,1736868636079,-500.0,0.00021917,3]
[348902792,1736868636089,-500.0,0.00021917,3]
[348902793,1736868636101,-500.0,0.00021917,3]
[348902794,1736868636111,-500.0,0.00021917,3]
[348902795,1736868636125,-500.0,0.00021917,3]
[348902796,1736868636135,-500.0,0.00021917,3]
[348902797,1736868636144,-627.75,0.00021917,3]
[348902798,1736868636154,-170.55145973,0.00021917,3]
[348902799,1736868636290,-654.14,0.00021917,3]
[348902800,1736868636301,-500.0,0.00021917,3]
[348902801,1736868636311,-500.0,0.00021917,3]
[348902802,1736868636323,-500.0,0.00021917,3]
[348902803,1736868636332,-500.0,0.00021917,3]
[348902804,1736868636341,-500.0,0.00021917,3]
[348902805,1736868636351,-1551.26,0.00021917,3]
[348902806,1736868636360,-438.26659971,0.00021917,3]
[348902807,1736868636370,-500.0,0.00021917,3]
[348902808,1736868636381,-500.0,0.00021917,3]
[348902809,1736868636391,-500.0,0.00021917,3]
[348902810,1736868636401,-500.0,0.00021917,3]
[348902811,1736868636410,-500.0,0.00021917,3]
[348902812,1736868636420,-958.77,0.00021917,3]
[348902813,1736868636430,-187.4942968,0.00021917,3]
[348902814,1736868636439,-500.0,0.00021917,3]
[348902815,1736868636449,-500.67533674,0.00021917,3]
[348902816,1736868636459,-1475.28,0.00021917,3]
[348902818,1736868636469,-500.0,0.00021917,3]
[348902819,1736868636478,-500.0,0.00021917,3]
[348902821,1736868636488,-581.2,0.00021917,3]
[348902822,1736868636498,-647.9,0.00021917,3]
[348902823,1736868636508,-500.0,0.00021917,3]
[348902825,1736868636518,-1195.31,0.00021917,3]
[348902826,1736868636527,-500.0,0.00021917,3]
[348902827,1736868636537,-500.0,0.00021917,3]
[348902829,1736868636547,-500.0,0.00021917,3]
[348902830,1736868636556,-500.0,0.00021917,3]
[348902832,1736868636565,-500.0,0.00021917,3]
[348902833,1736868636575,-500.0,0.00021917,3]
[348902835,1736868636585,-500.0,0.00021917,3]
[348902836,1736868636594,-500.0,0.00021917,3]
[348902837,1736868636604,-642.85,0.00021917,3]
[348902839,1736868636613,-500.0,0.00021917,3]
[348902840,1736868636623,-500.0,0.00021917,3]
[348902842,1736868636632,-500.0,0.00021917,3]
[348902843,1736868636641,-500.0,0.00021917,3]
[348902845,1736868636651,-500.0,0.00021917,3]
[348902846,1736868636661,-54.59271882,0.00021917,3]
[348902896,1736868638080,-242.24062644,0.00021698,2]
[348902898,1736868638090,-445.40728118,0.00021917,3]
[348902900,1736868638102,-500.0,0.00021917,3]
[348902902,1736868638113,-500.0,0.00021917,3]
[348902904,1736868638125,-500.0,0.00021917,3]
[348902906,1736868638135,-500.0,0.00021917,3]
[348902908,1736868638144,-500.0,0.00021917,3]
[348902910,1736868638154,-656.19,0.00021917,3]
[348902912,1736868638165,-500.0,0.00021917,3]
[348902914,1736868638174,-2389.46,0.00021917,3]
[348902915,1736868638184,-636.07,0.00021917,3]
[348902917,1736868638193,-500.0,0.00021917,3]
[348902919,1736868638202,-500.0,0.00021917,3]
[348902921,1736868638212,-2727.96,0.00021917,3]
[348902923,1736868638221,-500.0,0.00021917,3]
[348902925,1736868638230,-1358.32,0.00021917,3]
[348902928,1736868638239,-500.0,0.00021917,3]
[348902931,1736868638248,-500.0,0.00021917,3]
[348902934,1736868638257,-500.0,0.00021917,3]
[348902938,1736868638266,-557.67422096,0.00021917,3]
[348902941,1736868638279,-569.83577904,0.00021917,3]
[348902943,1736868638288,-3.30358115,0.00021917,3]
[348902946,1736868638307,-496.69641885,0.00021917,3]
[348902948,1736868638316,-1000.0,0.00021917,7]
[348902950,1736868638326,-1623.19,0.00021917,3]
[348902952,1736868638336,-503.82382776,0.00021917,3]
[348902954,1736868638346,-500.0,0.00021917,3]
[348902956,1736868638358,-520.04510318,0.00021917,3]
[348902958,1736868638367,-500.0,0.00021917,3]
[348902960,1736868638377,-500.0,0.00021917,3]
[348902962,1736868638386,-1291.14,0.00021917,3]
[348902964,1736868638396,-500.0,0.00021917,3]
[348902966,1736868638405,-211.01606803,0.00021969,2]
[348902968,1736868638415,-500.0,0.00021973,2]
[348902970,1736868638424,-211.01606803,0.00022038,2]
[348902972,1736868638433,-151.0,0.00022054,7]
[348902973,1736868638442,-500.0,0.00022054,3]
[348902975,1736868638451,-500.0,0.00022054,3]
[348902977,1736868638460,-500.0,0.00022054,3]
[348902979,1736868638470,-500.0,0.00022054,3]
[348902981,1736868638480,-500.0,0.00022054,3]
[348902982,1736868638489,-498.41143554,0.00022054,3]
[348902983,1736868638499,-500.0,0.00022054,3]
[348902985,1736868638509,-500.0,0.00022054,3]
[348902987,1736868638519,-500.0,0.00022054,3]
[348902989,1736868638529,-500.0,0.00022054,3]
[348902991,1736868638539,-500.0,0.00022054,3]
[348902993,1736868638549,-500.0,0.00022054,3]
[348902995,1736868638559,-500.0,0.00022054,3]
[348902997,1736868638568,-362.95186705,0.00022054,3]
[348902999,1736868638577,-500.0,0.00022054,3]
[348903001,1736868638587,-500.0,0.00022054,3]
[348903003,1736868638596,-500.0,0.00022054,3]
[348903004,1736868638608,-162.26568409,0.00022054,3]
[348903006,1736868638617,-420.73025746,0.00022054,3]
[348903008,1736868638627,-500.0,0.00022054,3]
[348903011,1736868638637,-500.0,0.00022054,3]
[348903012,1736868638647,-500.0,0.00022054,3]
[348903014,1736868638656,-500.0,0.00022054,3]
[348903016,1736868638665,-500.0,0.00022054,3]
[348903018,1736868638674,-500.0,0.00022054,3]
[348903020,1736868638684,-500.0,0.00022054,3]
[348903022,1736868638693,-554.6,0.00022054,3]
[348903024,1736868638702,-500.0,0.00022054,3]
[348903026,1736868638711,-151.0,0.00022054,7]
[348903028,1736868638721,-3518.88365004,0.00022054,3]
[348903291,1736868643030,-500.0,0.00021917,3]
[348903293,1736868643040,-500.0,0.00021917,3]
[348903295,1736868643050,-249.39634996,0.00022054,3]
[348903296,1736868643059,-645.48,0.00022054,3]
[348903298,1736868643068,-1202.4,0.00022054,3]
[348903300,1736868643078,-779.88,0.00022054,3]
[348903302,1736868643088,-612.07,0.00022054,3]
[348903304,1736868643097,-500.0,0.00022054,3]
[348903305,1736868643107,-500.0,0.00022054,3]
[348903307,1736868643118,-793.51,0.00022054,3]
[348903309,1736868643128,-546.51,0.00022054,3]
[348903311,1736868643137,-571.65,0.00022054,3]
[348903313,1736868643146,-534.63,0.00022054,3]
[348903314,1736868643155,-500.0,0.00022054,3]
[348903316,1736868643166,-500.0,0.00022054,3]
[348903318,1736868643175,-615.92,0.00022054,3]
[348903320,1736868643185,-500.0,0.00022054,3]
[348903321,1736868643195,-500.0,0.00022054,3]
[348903323,1736868643204,-500.0,0.00022054,3]
[348903325,1736868643213,-500.0,0.00022054,3]
[348903327,1736868643223,-500.0,0.00022054,3]
[348903329,1736868643232,-500.0,0.00022054,3]
[348903330,1736868643241,-500.0,0.00022054,3]
[348903332,1736868643251,-500.0,0.00022054,3]
[348903333,1736868643260,-572.53,0.00022054,3]
[348903334,1736868643269,-500.0,0.00022054,3]
[348903336,1736868643278,-1372.86,0.00022054,3]
[348903337,1736868643287,-500.0,0.00022054,3]
[348903339,1736868643296,-500.0,0.00022054,3]
[348903341,1736868643306,-500.0,0.00022054,3]
[348903343,1736868643315,-500.0,0.00022054,3]
[348903345,1736868643324,-500.0,0.00022054,3]
[348903346,1736868643334,-500.0,0.00022054,3]
[348903348,1736868643343,-516.01894718,0.00022054,3]
[348903349,1736868643353,-850.61,0.00022054,3]
[348903350,1736868643362,-552.33,0.00022054,3]
[348903351,1736868643372,-6280.18,0.00022054,3]
[348903352,1736868643382,-500.0,0.00022054,3]
[348903353,1736868643392,-500.0,0.00022054,3]
[348903354,1736868643401,-500.0,0.00022054,3]
[348903355,1736868643410,-513.5,0.00022054,3]
[348903356,1736868643420,-100056.4,0.00022054,3]
[348903357,1736868643429,-733.01,0.00022054,3]
[348903358,1736868643439,-500.0,0.00022054,3]
[348903359,1736868643448,-498.18164,0.00022054,3]
[348903360,1736868643457,-1030.31,0.00022054,3]
[348903361,1736868643466,-500.0,0.00022054,3]
[348903362,1736868643476,-500.0,0.00022054,3]
[348903363,1736868643486,-500.0,0.00022054,3]
[348903364,1736868643495,-500.0,0.00022054,3]
[348903365,1736868643504,-500.0,0.00022054,3]
[348903366,1736868643513,-500.0,0.00022054,3]
[348903367,1736868643522,-795.65,0.00022054,3]
[348903368,1736868643532,-500.0,0.00022054,3]
[348903369,1736868643541,-807.22,0.00022054,3]
[348903370,1736868643550,-511.75,0.00022054,3]
[348903371,1736868643559,-958.11,0.00022054,3]
[348903372,1736868643569,-624.77,0.00022054,3]
[348903373,1736868643578,-594.49,0.00022054,3]
[348903374,1736868643587,-723.78,0.00022054,3]
[348903375,1736868643597,-1126.39,0.00022054,3]
[348903376,1736868643607,-500.0,0.00022054,3]
[348903377,1736868643616,-500.0,0.00022054,3]
[348903378,1736868643626,-500.0,0.00022054,3]
[348903379,1736868643635,-500.0,0.00022054,3]
[348903380,1736868643644,-1354.68,0.00022054,3]
[348903381,1736868643653,-500.0,0.00022054,3]
[348903382,1736868643662,-670.2,0.00022054,3]
[348903383,1736868643672,-5829.81,0.00022054,3]
[348903384,1736868643681,-500.0,0.00022054,3]
[348903385,1736868643690,-861.16,0.00022054,3]
[348903386,1736868643699,-500.0,0.00022054,3]
[348903387,1736868643709,-500.0,0.00022054,3]
[348903388,1736868643718,-500.0,0.00022054,3]
[348903389,1736868643727,-500.0,0.00022054,3]
[348903390,1736868643736,-500.0,0.00022054,3]
[348903391,1736868643745,-500.0,0.00022054,3]
[348903392,1736868643754,-809.13,0.00022054,3]
[348903393,1736868643763,-151.0,0.00022054,7]
[348903394,1736868643772,-13597.56005379,0.00022054,2]
[348903395,1736868643785,-1849.41994621,0.00022054,2]
[348903396,1736868643794,-151.0,0.00022054,7]
[348903397,1736868643803,-500.0,0.00022054,3]
[348903398,1736868643812,-500.0,0.00022054,3]
[348903399,1736868643822,-500.0,0.00022054,3]
[348903400,1736868643831,-819.78,0.00022054,3]
[348903401,1736868643840,-500.0,0.00022054,3]
[348903402,1736868643849,-2258.25,0.00022054,3]
[348903403,1736868643859,-2645.94,0.00022054,2]
[348903404,1736868643868,-500.0,0.00022054,3]
[348903405,1736868643877,-3943.85,0.00022054,3]
[348903406,1736868643886,-679.18,0.00022054,3]
[348903407,1736868643896,-151.0,0.00022054,7]
[348903408,1736868643905,-500.0,0.00022054,3]
[348903409,1736868643914,-28763.14,0.00022054,3]
[348903410,1736868643923,-500.0,0.00022054,3]
[348903411,1736868643933,-500.0,0.00022054,3]
[348903412,1736868643942,-500.0,0.00022054,3]
[348903413,1736868643951,-1183.34,0.00022054,3]
[348903414,1736868643960,-500.0,0.00022054,3]
[348903415,1736868643969,-500.0,0.00022054,3]
[348903416,1736868643978,-500.0,0.00022054,3]
[348903417,1736868643988,-627.75,0.00022054,3]
[348903418,1736868643997,-654.14,0.00022054,3]
[348903419,1736868644006,-500.0,0.00022054,3]
[348903420,1736868644015,-500.0,0.00022054,3]
[348903421,1736868644024,-1551.26,0.00022054,3]
[348903422,1736868644033,-500.0,0.00022054,3]
[348903423,1736868644042,-500.0,0.00022054,3]
[348903424,1736868644051,-958.77,0.00022054,3]
[348903425,1736868644061,-1475.28,0.00022054,3]
[348903426,1736868644070,-500.0,0.00022054,3]
[348903427,1736868644079,-647.9,0.00022054,3]
[348903428,1736868644088,-581.2,0.00022054,3]
[348903429,1736868644097,-1195.31,0.00022054,3]
[348903430,1736868644107,-500.0,0.00022054,3]
[348903431,1736868644120,-500.0,0.00022054,3]
[348903432,1736868644129,-506.6807908,0.00022054,3]
[348903433,1736868644138,-500.0,0.00022054,3]
[348903434,1736868644147,-500.0,0.00022054,3]
[348903435,1736868644156,-500.0,0.00022054,3]
[348903436,1736868644166,-500.0,0.00022054,3]
[348903437,1736868644175,-500.0,0.00022054,3]
[348903438,1736868644184,-656.19,0.00022054,3]
[348903439,1736868644194,-2389.46,0.00022054,3]
[348903440,1736868644204,-636.07,0.00022054,3]
[348903441,1736868644213,-500.0,0.00022054,3]
[348903442,1736868644222,-2727.96,0.00022054,3]
[348903443,1736868644231,-500.0,0.00022054,3]
[348903444,1736868644241,-1358.32,0.00022054,3]
[348903445,1736868644388,-500.0,0.00022054,3]
[348903446,1736868644398,-1127.51,0.00022054,3]